{"text_format":"1","workbook":"xlsx","n_sheets":1,"sheets":["VTG-10"],"not_rendered":{"charts":0,"images":1,"macros":1,"external_links":0,"defined_names":0,"comments":1,"pivot_tables":0},"unopened":[],"bounds":{"document_bytes":16777216,"sheet_cells":100000,"rows_first":2000,"rows_last":500,"rows_between":2000,"halvings":0,"cell_chars":16384,"cell_head_chars":4096},"cells_cut":0,"cells_raw":0,"read":"whole","date_system":"1900"}

{"sheet":"VTG-10","index":0,"n_rows":52,"n_cols":7,"rows_kept":52,"cut":false,"hidden":false,"merged":[[43,0,43,1],[44,0,44,1],[45,0,45,1],[46,0,46,1],[38,0,38,1],[39,0,39,1],[40,0,40,1],[41,0,41,1],[42,0,42,1],[33,0,33,1],[34,0,34,1],[35,0,35,1],[36,0,36,1],[37,0,37,1],[28,0,28,1],[29,0,29,1],[30,0,30,1],[31,0,31,1],[32,0,32,1],[4,0,5,2],[3,4,3,6],[1,4,1,6],[4,4,5,6],[8,10,8,11],[48,0,48,1],[12,0,12,1],[47,0,47,1],[13,0,13,1],[14,0,14,1],[15,0,15,1],[16,0,16,1],[17,0,17,1],[18,0,18,1],[19,0,19,1],[22,0,22,1],[23,0,23,1],[24,0,24,1],[25,0,25,1],[26,0,26,1],[27,0,27,1],[20,0,20,1],[21,0,21,1],[10,0,10,6],[8,0,8,5],[11,0,11,1]]}
[null,null,null,"Erkenningsnummer:"]
[null,null,null,"SHM:"]
[null,null,null,"Dossiernummer:"]
[null,null,null,"Project:"]
["VTG-10   v 08/2018",null,null,"Inschrijver:"]
[]
[]
[]
["BEPALING VAN HET RANGSCHIKKINGSBEDRAG",null,null,null,null,null,"> Meer info "]
[]
["Met het formulier VTG-10 berekent u het rangschikkingsbedrag voor elke inschrijver. U stelt voor iedere inschrijver een apart formulier VTG-10 op."]
["Artikel waarvoor een verbetering in min werd aanvaard",null,"Definitief aanvaarde verbetering in min","Verbetering in min, \ndoor de inschrijver gesignaleerd en \ndoor de ontwerper \njuist bevonden","Verschil, \ntoe te voegen aan \nde offerte voor de rangschikking","Eenheidsprijs","Totaal"]
[null,null,null,null,{"$f":"C13-D13","v":0},null,{"$f":"E13*F13","v":0}]
[null,null,null,null,{"$f":"C14-D14","v":0},null,{"$f":"E14*F14","v":0}]
[null,null,null,null,0,null,0]
[null,null,null,null,0,null,0]
[null,null,null,null,0,null,0]
[null,null,null,null,0,null,0]
[null,null,null,null,0,null,0]
[null,null,null,null,0,null,0]
[null,null,null,null,0,null,0]
[null,null,null,null,0,null,0]
[null,null,null,null,0,null,0]
[null,null,null,null,0,null,0]
[null,null,null,null,0,null,0]
[null,null,null,null,0,null,0]
[null,null,null,null,0,null,0]
[null,null,null,null,0,null,0]
[null,null,null,null,0,null,0]
[null,null,null,null,0,null,0]
[null,null,null,null,0,null,0]
[null,null,null,null,0,null,0]
[null,null,null,null,0,null,0]
[null,null,null,null,0,null,0]
[null,null,null,null,0,null,0]
[null,null,null,null,0,null,0]
[null,null,null,null,0,null,0]
[null,null,null,null,0,null,0]
[null,null,null,null,0,null,0]
[null,null,null,null,0,null,0]
[null,null,null,null,0,null,0]
[null,null,null,null,0,null,0]
[null,null,null,null,0,null,0]
[null,null,null,null,0,null,0]
[null,null,null,null,0,null,0]
[null,null,null,null,0,null,0]
[null,null,null,null,null,"Totaal:",{"$f":"SUM(G13:G46)","v":0}]
[null,null,null,null,null,"(Verbeterd) bedrag (subtotaal E van de samenvattende meetstaat):"]
[null,null,null,null,null,"Bedrag om de rangschikking te bepalen:",{"$f":"G47+G48","v":0}]
[null,null,null,null,null,null,"in min:"]
[]
["Tip: gebruik 'alt + enter' om binnen een cel naar een nieuwe regel te gaan."]